[Event "Late-Titled-Tuesday-Blitz-March-12-2024"]
[Site "Chess.com"]
[Date "2024.03.12"]
[Round "10"]
[White "janhelmer03"]
[Black "Viktor_Poddubnyi"]
[Result "0-1"]
[WhiteElo "2386"]
[BlackElo "2294"]
[TimeControl "180+1"]
[EndTime "15:54:26 PDT"]
[Termination "Viktor_Poddubnyi won on time"]

1. Nf3 {[%clk 0:02:51.4]} 1... g6 {[%clk 0:03:00.4]} 2. c4 {[%clk 0:02:51.3]}
2... Bg7 {[%clk 0:03:00.6]} 3. Nc3 {[%clk 0:02:52]} 3... Nf6 {[%clk 0:02:58.2]}
4. e4 {[%clk 0:02:52.6]} 4... d6 {[%clk 0:02:55.6]} 5. d4 {[%clk 0:02:53]} 5...
O-O {[%clk 0:02:55.3]} 6. Be2 {[%clk 0:02:53.6]} 6... e5 {[%clk 0:02:53.1]} 7.
O-O {[%clk 0:02:53.8]} 7... Nc6 {[%clk 0:02:52.9]} 8. d5 {[%clk 0:02:54.4]} 8...
Ne7 {[%clk 0:02:53.2]} 9. b4 {[%clk 0:02:55.1]} 9... Nh5 {[%clk 0:02:50.9]} 10.
Re1 {[%clk 0:02:53.9]} 10... Nf4 {[%clk 0:02:43]} 11. Bf1 {[%clk 0:02:54]} 11...
f5 {[%clk 0:02:39.7]} 12. Bxf4 {[%clk 0:02:52.6]} 12... exf4 {[%clk 0:02:39]}
13. e5 {[%clk 0:02:53.5]} 13... dxe5 {[%clk 0:02:21.4]} 14. Nxe5 {[%clk
0:02:42.4]} 14... a5 {[%clk 0:02:12.8]} 15. Qb3 {[%clk 0:02:34.9]} 15... axb4
{[%clk 0:02:05.6]} 16. Qxb4 {[%clk 0:02:35.8]} 16... Re8 {[%clk 0:01:42.1]} 17.
Rad1 {[%clk 0:02:00.3]} 17... Bxe5 {[%clk 0:01:13.6]} 18. Rxe5 {[%clk
0:01:59.3]} 18... Qd6 {[%clk 0:01:14.1]} 19. Qxd6 {[%clk 0:01:52.9]} 19... cxd6
{[%clk 0:01:15]} 20. Re2 {[%clk 0:01:48.3]} 20... Bd7 {[%clk 0:01:12.9]} 21. Rb1
{[%clk 0:01:36.4]} 21... Ra7 {[%clk 0:00:58.3]} 22. Reb2 {[%clk 0:01:18.7]}
22... Rb8 {[%clk 0:00:55.2]} 23. h4 {[%clk 0:01:07.8]} 23... Nc8 {[%clk
0:00:51.5]} 24. Ne2 {[%clk 0:00:50.9]} 24... f3 {[%clk 0:00:49.2]} 25. gxf3
{[%clk 0:00:47.2]} 25... b6 {[%clk 0:00:48.2]} 26. f4 {[%clk 0:00:44.9]} 26...
Rba8 {[%clk 0:00:48.2]} 27. Nc1 {[%clk 0:00:39.3]} 27... Ra3 {[%clk 0:00:45.4]}
28. Bd3 {[%clk 0:00:30.3]} 28... Kf7 {[%clk 0:00:42.4]} 29. Rb3 {[%clk
0:00:28.1]} 29... R3a4 {[%clk 0:00:39.8]} 30. Kg2 {[%clk 0:00:21.5]} 30... R8a7
{[%clk 0:00:39.2]} 31. Kf3 {[%clk 0:00:21.8]} 31... Kf6 {[%clk 0:00:38.5]} 32.
R1b2 {[%clk 0:00:19.3]} 32... Kf7 {[%clk 0:00:36.6]} 33. Re2 {[%clk 0:00:17.3]}
33... Rc7 {[%clk 0:00:28.2]} 34. Re1 {[%clk 0:00:16.8]} 34... Rca7 {[%clk
0:00:20.6]} 35. Rh1 {[%clk 0:00:15]} 35... h5 {[%clk 0:00:19.8]} 36. Rg1 {[%clk
0:00:14.6]} 36... R4a5 {[%clk 0:00:19.6]} 37. Rb2 {[%clk 0:00:13.3]} 37... Ra3
{[%clk 0:00:19]} 38. Rd2 {[%clk 0:00:12.9]} 38... Rc3 {[%clk 0:00:17.8]} 39. Rc2
{[%clk 0:00:11.5]} 39... Raa3 {[%clk 0:00:15.7]} 40. Rxc3 {[%clk 0:00:11.3]}
40... Rxc3 {[%clk 0:00:16.6]} 41. Ke2 {[%clk 0:00:11.9]} 41... Ra3 {[%clk
0:00:14.5]} 42. Bc2 {[%clk 0:00:09.3]} 42... Ra5 {[%clk 0:00:13]} 43. Bb3 {[%clk
0:00:09.6]} 43... Ne7 {[%clk 0:00:10.7]} 44. Rg3 {[%clk 0:00:08.6]} 44... Ng8
{[%clk 0:00:10.6]} 45. Re3 {[%clk 0:00:06.8]} 45... Nf6 {[%clk 0:00:10.9]} 46.
f3 {[%clk 0:00:07.7]} 46... Ra8 {[%clk 0:00:10.4]} 47. Nd3 {[%clk 0:00:07.3]}
47... Rc8 {[%clk 0:00:09.4]} 48. Nb4 {[%clk 0:00:07]} 48... Rc7 {[%clk
0:00:09.3]} 49. Nc2 {[%clk 0:00:07.4]} 49... Ra7 {[%clk 0:00:09.3]} 50. Nd4
{[%clk 0:00:07.7]} 50... Rc7 {[%clk 0:00:09.2]} 51. Rc3 {[%clk 0:00:07.1]} 51...
Nxd5 {[%clk 0:00:07.6]} 52. Rc1 {[%clk 0:00:03.7]} 52... Nxf4+ {[%clk
0:00:07.5]} 53. Ke3 {[%clk 0:00:04.2]} 53... Ne6 {[%clk 0:00:07.8]} 54. Nb5
{[%clk 0:00:03.3]} 54... Bxb5 {[%clk 0:00:07.1]} 55. Rd1 {[%clk 0:00:02.8]}
55... Bxc4 {[%clk 0:00:06.9]} 56. Ba4 {[%clk 0:00:01.2]} 56... b5 {[%clk
0:00:06.9]} 0-1

[Event "Late-Titled-Tuesday-Blitz-March-12-2024"]
[Site "Chess.com"]
[Date "2024.03.12"]
[Round "10"]
[White "oskariot"]
[Black "bazar-wokzal"]
[Result "1-0"]
[WhiteElo "2769"]
[BlackElo "2578"]
[TimeControl "180+1"]
[EndTime "15:54:32 PDT"]
[Termination "oskariot won on time"]

1. e4 {[%clk 0:03:00.6]} 1... Nc6 {[%clk 0:02:59.5]} 2. Nf3 {[%clk 0:03:00.8]}
2... d5 {[%clk 0:02:58.9]} 3. exd5 {[%clk 0:02:58.3]} 3... Qxd5 {[%clk
0:02:58.8]} 4. Nc3 {[%clk 0:02:58.8]} 4... Qa5 {[%clk 0:02:58.5]} 5. d4 {[%clk
0:02:54.5]} 5... Bg4 {[%clk 0:02:58.3]} 6. Bb5 {[%clk 0:02:54.8]} 6... O-O-O
{[%clk 0:02:57.6]} 7. Bxc6 {[%clk 0:02:52.9]} 7... bxc6 {[%clk 0:02:56.8]} 8. h3
{[%clk 0:02:36.7]} 8... Qh5 {[%clk 0:02:55.5]} 9. Qe2 {[%clk 0:02:32.4]} 9...
Bxf3 {[%clk 0:02:53.2]} 10. gxf3 {[%clk 0:02:33.3]} 10... e6 {[%clk 0:02:53.5]}
11. Be3 {[%clk 0:02:27.2]} 11... Bb4 {[%clk 0:02:52.4]} 12. Rg1 {[%clk
0:02:10.7]} 12... Qxh3 {[%clk 0:02:22.8]} 13. O-O-O {[%clk 0:01:53.6]} 13...
Bxc3 {[%clk 0:02:20.8]} 14. bxc3 {[%clk 0:01:50.8]} 14... Ne7 {[%clk 0:02:04.7]}
15. Rxg7 {[%clk 0:01:48.1]} 15... Rhf8 {[%clk 0:01:51.6]} 16. Bg5 {[%clk
0:01:19.9]} 16... Nf5 {[%clk 0:01:27.7]} 17. Bxd8 {[%clk 0:01:18.5]} 17... Nxg7
{[%clk 0:01:25.3]} 18. Be7 {[%clk 0:01:12.4]} 18... Re8 {[%clk 0:01:17.3]} 19.
Bc5 {[%clk 0:01:12.6]} 19... Nf5 {[%clk 0:01:13.3]} 20. Kb2 {[%clk 0:01:06.1]}
20... Kd7 {[%clk 0:01:13.2]} 21. Ka1 {[%clk 0:01:06.1]} 21... h5 {[%clk
0:01:08.7]} 22. c4 {[%clk 0:01:06.1]} 22... Qg2 {[%clk 0:01:04.2]} 23. Qd3
{[%clk 0:00:50]} 23... Qxf2 {[%clk 0:00:53.9]} 24. d5 {[%clk 0:00:50.3]} 24...
Qxc5 {[%clk 0:00:51.3]} 25. dxe6+ {[%clk 0:00:47.7]} 25... Kxe6 {[%clk
0:00:32.3]} 26. Re1+ {[%clk 0:00:43.5]} 26... Kf6 {[%clk 0:00:31.1]} 27. Rxe8
{[%clk 0:00:44]} 27... Qd4+ {[%clk 0:00:22.2]} 28. Kb1 {[%clk 0:00:35]} 28...
Qxd3 {[%clk 0:00:18.2]} 29. cxd3 {[%clk 0:00:35.9]} 29... Kg5 {[%clk 0:00:18.7]}
30. Rh8 {[%clk 0:00:33]} 30... h4 {[%clk 0:00:18]} 31. Kc2 {[%clk 0:00:33.3]}
31... Kf4 {[%clk 0:00:18.5]} 32. Rh7 {[%clk 0:00:31.2]} 32... f6 {[%clk
0:00:18.2]} 33. Rh5 {[%clk 0:00:26.6]} 33... c5 {[%clk 0:00:12.5]} 34. Kd2
{[%clk 0:00:25.8]} 34... a5 {[%clk 0:00:04.9]} 35. Ke1 {[%clk 0:00:22.4]} 35...
Nd4 {[%clk 0:00:02.9]} 36. Rxh4+ {[%clk 0:00:20.7]} 36... Ke3 {[%clk 0:00:03.3]}
37. Rh7 {[%clk 0:00:11.8]} 37... Nxf3+ {[%clk 0:00:03.5]} 38. Kd1 {[%clk
0:00:11.9]} 38... Kxd3 {[%clk 0:00:04]} 39. Rh3 {[%clk 0:00:12]} 39... Ke4
{[%clk 0:00:03.7]} 40. Ke2 {[%clk 0:00:12]} 40... Ne5 {[%clk 0:00:03.6]} 41.
Rh4+ {[%clk 0:00:11.5]} 41... Kf5 {[%clk 0:00:04]} 42. Ke3 {[%clk 0:00:11]}
42... Ng4+ {[%clk 0:00:03.4]} 43. Kf3 {[%clk 0:00:10.4]} 43... Ne5+ {[%clk
0:00:03.7]} 44. Ke3 {[%clk 0:00:11]} 44... Ng4+ {[%clk 0:00:04]} 45. Kd3 {[%clk
0:00:11]} 45... Ne5+ {[%clk 0:00:03.9]} 46. Kc3 {[%clk 0:00:10.7]} 46... Kg5
{[%clk 0:00:04.2]} 47. Rh7 {[%clk 0:00:10.9]} 47... f5 {[%clk 0:00:04.7]} 48.
Rxc7 {[%clk 0:00:11.4]} 48... f4 {[%clk 0:00:05]} 49. Rxc5 {[%clk 0:00:11.9]}
49... Kf6 {[%clk 0:00:04.6]} 50. Kd4 {[%clk 0:00:12.1]} 50... f3 {[%clk
0:00:04.2]} 51. Ke3 {[%clk 0:00:09.2]} 51... Ke6 {[%clk 0:00:02.9]} 52. Rc8
{[%clk 0:00:06.6]} 52... Kd7 {[%clk 0:00:02.1]} 53. Rc5 {[%clk 0:00:06.3]} 53...
Kd6 {[%clk 0:00:01.4]} 54. Rd5+ {[%clk 0:00:06.5]} 54... Ke6 {[%clk 0:00:02]}
55. Kf2 {[%clk 0:00:07]} 55... Nxc4 {[%clk 0:00:01.9]} 56. Rc5 {[%clk
0:00:07.6]} 1-0

[Event "Late-Titled-Tuesday-Blitz-March-12-2024"]
[Site "Chess.com"]
[Date "2024.03.12"]
[Round "10"]
[White "sorch29"]
[Black "Zq1"]
[Result "1-0"]
[WhiteElo "2486"]
[BlackElo "2606"]
[TimeControl "180+1"]
[EndTime "15:54:34 PDT"]
[Termination "sorch29 won on time"]

1. d4 {[%clk 0:03:00.9]} 1... Nf6 {[%clk 0:02:59.3]} 2. c4 {[%clk 0:02:58.2]}
2... a6 {[%clk 0:02:58.8]} 3. e3 {[%clk 0:02:51.4]} 3... e6 {[%clk 0:02:56.3]}
4. Nf3 {[%clk 0:02:51.1]} 4... c5 {[%clk 0:02:56.4]} 5. Nc3 {[%clk 0:02:50.3]}
5... d5 {[%clk 0:02:55.8]} 6. cxd5 {[%clk 0:02:47.4]} 6... exd5 {[%clk
0:02:55.6]} 7. Be2 {[%clk 0:02:41.7]} 7... c4 {[%clk 0:02:55.5]} 8. O-O {[%clk
0:02:23.9]} 8... b5 {[%clk 0:02:55]} 9. Ne5 {[%clk 0:02:22.6]} 9... Bb7 {[%clk
0:02:54]} 10. Bf3 {[%clk 0:02:17.8]} 10... Bd6 {[%clk 0:02:50.3]} 11. b3 {[%clk
0:02:16.9]} 11... b4 {[%clk 0:02:36.5]} 12. Na4 {[%clk 0:02:04.5]} 12... c3
{[%clk 0:02:35.4]} 13. a3 {[%clk 0:01:51.5]} 13... a5 {[%clk 0:02:34.2]} 14. Nc5
{[%clk 0:01:51.2]} 14... Bxc5 {[%clk 0:02:29.2]} 15. dxc5 {[%clk 0:01:51.5]}
15... O-O {[%clk 0:02:26.4]} 16. Nd3 {[%clk 0:01:47.6]} 16... Nc6 {[%clk
0:02:17.3]} 17. Re1 {[%clk 0:00:53.5]} 17... Re8 {[%clk 0:02:08.4]} 18. Qc2
{[%clk 0:00:52.7]} 18... Qe7 {[%clk 0:02:00.7]} 19. axb4 {[%clk 0:00:30.4]}
19... axb4 {[%clk 0:01:47]} 20. Rxa8 {[%clk 0:00:31.3]} 20... Bxa8 {[%clk
0:01:45.5]} 21. Nxb4 {[%clk 0:00:24.9]} 21... Nxb4 {[%clk 0:01:41.1]} 22. Qxc3
{[%clk 0:00:25]} 22... Nc6 {[%clk 0:01:26.6]} 23. Bb2 {[%clk 0:00:11.9]} 23...
d4 {[%clk 0:01:18.4]} 24. Qc1 {[%clk 0:00:05.7]} 24... Ne5 {[%clk 0:01:12.6]}
25. Bxa8 {[%clk 0:00:05.1]} 25... Nd3 {[%clk 0:01:07.7]} 26. Qd2 {[%clk
0:00:05.4]} 26... Nxe1 {[%clk 0:01:05.2]} 27. Bc6 {[%clk 0:00:04.5]} 27... Rc8
{[%clk 0:00:57.4]} 28. Bb5 {[%clk 0:00:05.1]} 28... Qxc5 {[%clk 0:00:48.6]} 29.
Bc4 {[%clk 0:00:05.7]} 29... dxe3 {[%clk 0:00:46.7]} 30. Qxe1 {[%clk 0:00:04]}
30... exf2+ {[%clk 0:00:46.2]} 31. Qxf2 {[%clk 0:00:04.5]} 31... Qxf2+ {[%clk
0:00:44.3]} 32. Kxf2 {[%clk 0:00:04.7]} 32... Ne4+ {[%clk 0:00:44.2]} 33. Ke3
{[%clk 0:00:04.2]} 33... Nd6 {[%clk 0:00:40.8]} 34. Bd3 {[%clk 0:00:02.3]} 34...
Kf8 {[%clk 0:00:38.5]} 35. Bd4 {[%clk 0:00:01.8]} 35... f6 {[%clk 0:00:35.9]}
36. b4 {[%clk 0:00:02.3]} 36... Rb8 {[%clk 0:00:31.2]} 37. Bc5 {[%clk
0:00:02.5]} 37... Ke7 {[%clk 0:00:31.2]} 38. Kd4 {[%clk 0:00:03.2]} 38... Kd7
{[%clk 0:00:31]} 39. Bxh7 {[%clk 0:00:03.1]} 39... Nb5+ {[%clk 0:00:28]} 40. Kc4
{[%clk 0:00:03.3]} 40... Nc7 {[%clk 0:00:26.4]} 41. Bf5+ {[%clk 0:00:03.6]}
41... Kd8 {[%clk 0:00:24.5]} 42. h3 {[%clk 0:00:04.3]} 42... Na6 {[%clk
0:00:22]} 43. Be4 {[%clk 0:00:04.6]} 43... Nxc5 {[%clk 0:00:21.6]} 44. Kxc5
{[%clk 0:00:04.7]} 44... Kc7 {[%clk 0:00:20.3]} 45. b5 {[%clk 0:00:04.8]} 45...
Rb6 {[%clk 0:00:17.2]} 46. Bc6 {[%clk 0:00:05.1]} 46... Rb8 {[%clk 0:00:17.1]}
47. g4 {[%clk 0:00:04]} 47... g5 {[%clk 0:00:17.1]} 48. Bd5 {[%clk 0:00:03.6]}
48... Rb6 {[%clk 0:00:15.4]} 49. Bc6 {[%clk 0:00:04.2]} 49... Rb8 {[%clk
0:00:15.5]} 50. Kd5 {[%clk 0:00:04]} 50... Rd8+ {[%clk 0:00:11]} 51. Ke6 {[%clk
0:00:04.2]} 51... Rd6+ {[%clk 0:00:11]} 52. Kf5 {[%clk 0:00:04.9]} 52... Kb6
{[%clk 0:00:10.2]} 53. Kg6 {[%clk 0:00:05.4]} 53... Kc5 {[%clk 0:00:09.7]} 54.
Kf5 {[%clk 0:00:06]} 54... Kd4 {[%clk 0:00:09.2]} 55. Bg2 {[%clk 0:00:04.1]}
55... Ke3 {[%clk 0:00:08.2]} 56. Bc6 {[%clk 0:00:02.3]} 56... Kf2 {[%clk
0:00:07.6]} 57. Kg6 {[%clk 0:00:03]} 57... Kg3 {[%clk 0:00:07.2]} 58. Kf7 {[%clk
0:00:03.8]} 58... Kxh3 {[%clk 0:00:06.7]} 59. Ke7 {[%clk 0:00:04.5]} 59... Rd2
{[%clk 0:00:05.5]} 60. Bd7 {[%clk 0:00:03.6]} 60... Rf2 {[%clk 0:00:03.4]} 61.
Bf5 {[%clk 0:00:03.8]} 61... Kh4 {[%clk 0:00:03]} 62. Kxf6 {[%clk 0:00:04.4]}
1-0

[Event "Late-Titled-Tuesday-Blitz-March-12-2024"]
[Site "Chess.com"]
[Date "2024.03.12"]
[Round "10"]
[White "Speed-O-Sonic"]
[Black "agus_k"]
[Result "1-0"]
[WhiteElo "2470"]
[BlackElo "2573"]
[TimeControl "180+1"]
[EndTime "15:54:44 PDT"]
[Termination "Speed-O-Sonic won by resignation"]

1. e4 {[%clk 0:03:00.9]} 1... c5 {[%clk 0:02:55.8]} 2. Nc3 {[%clk 0:03:00.8]}
2... g6 {[%clk 0:02:54.9]} 3. d4 {[%clk 0:03:00.3]} 3... cxd4 {[%clk 0:02:54.4]}
4. Qxd4 {[%clk 0:03:01.2]} 4... Nf6 {[%clk 0:02:54.3]} 5. Be3 {[%clk 0:03:01.7]}
5... Nc6 {[%clk 0:02:54.3]} 6. Qd2 {[%clk 0:03:02.3]} 6... Ng4 {[%clk
0:02:51.3]} 7. Bf4 {[%clk 0:02:51.4]} 7... Bg7 {[%clk 0:02:48.7]} 8. f3 {[%clk
0:02:43.9]} 8... Nge5 {[%clk 0:02:48.8]} 9. O-O-O {[%clk 0:02:38.9]} 9... d6
{[%clk 0:02:47.6]} 10. h4 {[%clk 0:02:35]} 10... h5 {[%clk 0:02:47.1]} 11. Nge2
{[%clk 0:02:32.8]} 11... Be6 {[%clk 0:02:46.2]} 12. Kb1 {[%clk 0:02:16.6]} 12...
Nc4 {[%clk 0:02:45.2]} 13. Qc1 {[%clk 0:02:16]} 13... Qb6 {[%clk 0:02:44.7]} 14.
b3 {[%clk 0:02:13.5]} 14... Rc8 {[%clk 0:02:34.6]} 15. Na4 {[%clk 0:01:51.1]}
15... Qb4 {[%clk 0:02:26.4]} 16. c3 {[%clk 0:01:51.2]} 16... Na3+ {[%clk
0:02:26.6]} 17. Kb2 {[%clk 0:01:41.4]} 17... Na5 {[%clk 0:02:25.4]} 18. Nd4
{[%clk 0:01:27.7]} 18... N3c4+ {[%clk 0:01:46.9]} 19. Ka1 {[%clk 0:01:09.6]}
19... Qa3 {[%clk 0:01:47.1]} 20. Bxc4 {[%clk 0:01:02.9]} 20... Nxc4 {[%clk
0:01:46.3]} 21. Qxa3 {[%clk 0:00:46.3]} 21... Nxa3 {[%clk 0:01:46.1]} 22. Kb2
{[%clk 0:00:46.6]} 22... Bxd4 {[%clk 0:01:44.5]} 23. cxd4 {[%clk 0:00:41.9]}
23... Nb5 {[%clk 0:01:40.8]} 24. Be3 {[%clk 0:00:39.8]} 24... d5 {[%clk
0:01:37.5]} 25. Rc1 {[%clk 0:00:34]} 25... O-O {[%clk 0:01:34.3]} 26. Nc5 {[%clk
0:00:34]} 26... b6 {[%clk 0:01:34.3]} 27. Nxe6 {[%clk 0:00:33]} 27... fxe6
{[%clk 0:01:35.2]} 28. e5 {[%clk 0:00:30.2]} 28... a6 {[%clk 0:01:29.1]} 29. a4
{[%clk 0:00:24.7]} 29... Na7 {[%clk 0:01:29.1]} 30. b4 {[%clk 0:00:22.6]} 30...
Nc6 {[%clk 0:01:27.2]} 31. Kb3 {[%clk 0:00:22.1]} 31... a5 {[%clk 0:01:25.4]}
32. b5 {[%clk 0:00:20.8]} 32... Nb4 {[%clk 0:01:25.8]} 33. Bg5 {[%clk
0:00:19.5]} 33... Kf7 {[%clk 0:01:25]} 34. Rhf1 {[%clk 0:00:17.3]} 34... Nd3
{[%clk 0:01:22.2]} 35. Rcd1 {[%clk 0:00:15.9]} 35... Nb4 {[%clk 0:01:20.7]} 36.
Rc1 {[%clk 0:00:16.3]} 36... Rfe8 {[%clk 0:01:14]} 37. Bd2 {[%clk 0:00:13.8]}
37... Nd3 {[%clk 0:01:13.2]} 38. Rcd1 {[%clk 0:00:09.9]} 38... Rc4 {[%clk
0:01:07.9]} 39. Bc3 {[%clk 0:00:09.5]} 39... Nf4 {[%clk 0:01:07.4]} 40. g3
{[%clk 0:00:09.4]} 40... Ng2 {[%clk 0:01:07.6]} 41. Rf2 {[%clk 0:00:06.4]} 41...
Ne3 {[%clk 0:01:05.7]} 42. Rd3 {[%clk 0:00:05.2]} 42... Rxc3+ {[%clk 0:01:01]}
43. Rxc3 {[%clk 0:00:03]} 43... Nc4 {[%clk 0:01:01.3]} 44. Rfc2 {[%clk
0:00:02.7]} 44... Rd8 {[%clk 0:00:53.1]} 45. Rxc4 {[%clk 0:00:02.9]} 45... dxc4+
{[%clk 0:00:53.4]} 46. Rxc4 {[%clk 0:00:03.8]} 46... Ke8 {[%clk 0:00:53.9]} 47.
f4 {[%clk 0:00:04.6]} 47... Kd7 {[%clk 0:00:53.4]} 48. Kc3 {[%clk 0:00:05.5]}
48... Rb8 {[%clk 0:00:52.6]} 49. Rc6 {[%clk 0:00:05.6]} 49... Rf8 {[%clk
0:00:52]} 50. Kc4 {[%clk 0:00:06.5]} 50... Rg8 {[%clk 0:00:51.2]} 51. Rxb6
{[%clk 0:00:06.5]} 51... Rc8+ {[%clk 0:00:49.2]} 52. Kd3 {[%clk 0:00:06.4]}
52... Rc1 {[%clk 0:00:47.5]} 53. Rb7+ {[%clk 0:00:06.6]} 53... Ke8 {[%clk
0:00:46.8]} 54. b6 {[%clk 0:00:06.8]} 54... Rb1 {[%clk 0:00:45.6]} 55. Rb8+
{[%clk 0:00:05.4]} 55... Kf7 {[%clk 0:00:45.5]} 56. b7 {[%clk 0:00:06.3]} 56...
Rb4 {[%clk 0:00:45.2]} 57. Kc3 {[%clk 0:00:05.3]} 57... Kg7 {[%clk 0:00:44.8]}
58. Kd3 {[%clk 0:00:03.6]} 58... Kf7 {[%clk 0:00:44.8]} 59. Ke2 {[%clk
0:00:04.1]} 59... Kg7 {[%clk 0:00:44.2]} 60. Kf2 {[%clk 0:00:04.6]} 60... Kf7
{[%clk 0:00:44.3]} 61. g4 {[%clk 0:00:05.2]} 61... Kg7 {[%clk 0:00:42.3]} 62.
gxh5 {[%clk 0:00:04.6]} 62... gxh5 {[%clk 0:00:42.6]} 63. Kf3 {[%clk 0:00:04.2]}
63... Kf7 {[%clk 0:00:41.2]} 64. Ke4 {[%clk 0:00:04.6]} 64... Kg7 {[%clk
0:00:40.6]} 65. f5 {[%clk 0:00:05]} 65... exf5+ {[%clk 0:00:28.5]} 66. Kxf5
{[%clk 0:00:05.9]} 66... Kf7 {[%clk 0:00:23.1]} 67. d5 {[%clk 0:00:06.3]} 67...
Kg7 {[%clk 0:00:22.2]} 68. Ke6 {[%clk 0:00:06.4]} 1-0

[Event "Late-Titled-Tuesday-Blitz-March-12-2024"]
[Site "Chess.com"]
[Date "2024.03.12"]
[Round "10"]
[White "Sina_Movahed"]
[Black "Bauman_Guy"]
[Result "1/2-1/2"]
[WhiteElo "3038"]
[BlackElo "2938"]
[TimeControl "180+1"]
[EndTime "15:54:51 PDT"]
[Termination "Game drawn - insufficient material"]

1. e4 {[%clk 0:03:00.9]} 1... c5 {[%clk 0:02:58.9]} 2. Nf3 {[%clk 0:02:55.6]}
2... d6 {[%clk 0:02:55.3]} 3. d4 {[%clk 0:02:56.1]} 3... Nf6 {[%clk 0:02:53.9]}
4. Nc3 {[%clk 0:02:48.5]} 4... cxd4 {[%clk 0:02:53.2]} 5. Nxd4 {[%clk
0:02:49.4]} 5... a6 {[%clk 0:02:53.4]} 6. h3 {[%clk 0:02:47.2]} 6... e5 {[%clk
0:02:53]} 7. Nde2 {[%clk 0:02:47.8]} 7... h5 {[%clk 0:02:52.7]} 8. g3 {[%clk
0:02:48.1]} 8... Be7 {[%clk 0:02:51.5]} 9. Bg2 {[%clk 0:02:48.3]} 9... O-O
{[%clk 0:02:49.6]} 10. O-O {[%clk 0:02:48]} 10... b5 {[%clk 0:02:49.4]} 11. a4
{[%clk 0:02:46.9]} 11... b4 {[%clk 0:02:49]} 12. Nd5 {[%clk 0:02:45.2]} 12...
Nxd5 {[%clk 0:02:49.2]} 13. Qxd5 {[%clk 0:02:41.9]} 13... Ra7 {[%clk 0:02:49.5]}
14. c3 {[%clk 0:02:41.8]} 14... Be6 {[%clk 0:02:43.9]} 15. Qd1 {[%clk
0:02:41.5]} 15... b3 {[%clk 0:02:41.6]} 16. Be3 {[%clk 0:02:41.6]} 16... Rb7
{[%clk 0:02:40.4]} 17. Kh2 {[%clk 0:02:31]} 17... Nc6 {[%clk 0:02:35]} 18. f4
{[%clk 0:02:30.3]} 18... Na5 {[%clk 0:02:32.9]} 19. f5 {[%clk 0:02:30.3]} 19...
Bd7 {[%clk 0:02:33.1]} 20. Ng1 {[%clk 0:02:14.2]} 20... Nc4 {[%clk 0:02:19.5]}
21. Qe2 {[%clk 0:02:10.5]} 21... Qc7 {[%clk 0:02:04]} 22. Rfd1 {[%clk 0:01:58]}
22... Rc8 {[%clk 0:01:54.7]} 23. Bf2 {[%clk 0:01:54.2]} 23... Nxb2 {[%clk
0:01:12.7]} 24. Qxb2 {[%clk 0:01:52.9]} 24... Qxc3 {[%clk 0:01:12.9]} 25. Rd2
{[%clk 0:01:44.7]} 25... Qxb2 {[%clk 0:01:05.8]} 26. Rxb2 {[%clk 0:01:45.6]}
26... Rc2 {[%clk 0:01:06.1]} 27. Rab1 {[%clk 0:01:33.6]} 27... Rxb2 {[%clk
0:01:00.8]} 28. Rxb2 {[%clk 0:01:33.2]} 28... Bxa4 {[%clk 0:01:01.7]} 29. Bf1
{[%clk 0:01:19.2]} 29... Rc7 {[%clk 0:00:48.8]} 30. Bxa6 {[%clk 0:01:15.1]}
30... Bg5 {[%clk 0:00:44.2]} 31. Bd3 {[%clk 0:01:08.5]} 31... Rc3 {[%clk
0:00:18]} 32. Bb1 {[%clk 0:01:06.8]} 32... Bc1 {[%clk 0:00:15.3]} 33. Re2 {[%clk
0:01:06.2]} 33... b2 {[%clk 0:00:13.9]} 34. Re1 {[%clk 0:00:56.7]} 34... Bc2
{[%clk 0:00:11.1]} 35. Ne2 {[%clk 0:00:51.2]} 35... Rc4 {[%clk 0:00:11.2]} 36.
Nxc1 {[%clk 0:00:43.9]} 36... Bxb1 {[%clk 0:00:06.8]} 37. Nb3 {[%clk 0:00:43.8]}
37... Bd3 {[%clk 0:00:02.7]} 38. Nd2 {[%clk 0:00:37.4]} 38... Rc1 {[%clk
0:00:02.9]} 39. Kg2 {[%clk 0:00:23.7]} 39... Bxe4+ {[%clk 0:00:02.1]} 40. Rxe4
{[%clk 0:00:21.9]} 40... Rc2 {[%clk 0:00:02.7]} 41. Rb4 {[%clk 0:00:19.9]} 41...
Rxd2 {[%clk 0:00:03]} 42. Kf3 {[%clk 0:00:20.5]} 42... d5 {[%clk 0:00:03]} 43.
Be3 {[%clk 0:00:19.1]} 43... Rc2 {[%clk 0:00:03.5]} 44. g4 {[%clk 0:00:17.3]}
44... hxg4+ {[%clk 0:00:03.5]} 45. hxg4 {[%clk 0:00:18.2]} 45... f6 {[%clk
0:00:04.4]} 46. g5 {[%clk 0:00:18.1]} 46... d4 {[%clk 0:00:04.9]} 47. g6 {[%clk
0:00:17.3]} 47... Kf8 {[%clk 0:00:05.6]} 48. Rb8+ {[%clk 0:00:15.4]} 48... Ke7
{[%clk 0:00:06]} 49. Bh6 {[%clk 0:00:16.1]} 49... gxh6 {[%clk 0:00:03.5]} 50. g7
{[%clk 0:00:16.5]} 50... Rc8 {[%clk 0:00:03.2]} 51. Rxc8 {[%clk 0:00:11.7]}
51... b1=Q {[%clk 0:00:03.7]} 52. g8=Q {[%clk 0:00:11.8]} 52... Qd3+ {[%clk
0:00:04.3]} 53. Kg4 {[%clk 0:00:11.3]} 53... Qe4+ {[%clk 0:00:04.7]} 54. Kh5
{[%clk 0:00:11.9]} 54... Qxf5+ {[%clk 0:00:05.2]} 55. Kxh6 {[%clk 0:00:12.5]}
55... Qh3+ {[%clk 0:00:05.9]} 56. Kg7 {[%clk 0:00:12.9]} 56... Qg4+ {[%clk
0:00:05]} 57. Kh8 {[%clk 0:00:12.9]} 57... Qh5+ {[%clk 0:00:04.5]} 58. Qh7+
{[%clk 0:00:13.1]} 58... Qxh7+ {[%clk 0:00:04.7]} 59. Kxh7 {[%clk 0:00:14]}
59... d3 {[%clk 0:00:04.1]} 60. Ra8 {[%clk 0:00:11.9]} 60... e4 {[%clk
0:00:03.7]} 61. Ra4 {[%clk 0:00:10.9]} 61... f5 {[%clk 0:00:03.3]} 62. Rd4
{[%clk 0:00:11.3]} 62... Ke6 {[%clk 0:00:03.3]} 63. Kg6 {[%clk 0:00:11]} 63...
Ke5 {[%clk 0:00:04.2]} 64. Rd8 {[%clk 0:00:11.6]} 64... Kf4 {[%clk 0:00:02.9]}
65. Kf6 {[%clk 0:00:10.6]} 65... Ke3 {[%clk 0:00:02.5]} 66. Kxf5 {[%clk
0:00:11]} 66... d2 {[%clk 0:00:03.1]} 67. Ke5 {[%clk 0:00:09.9]} 67... Ke2
{[%clk 0:00:03.5]} 68. Kxe4 {[%clk 0:00:10]} 68... d1=Q {[%clk 0:00:04.4]} 69.
Rxd1 {[%clk 0:00:09.6]} 69... Kxd1 {[%clk 0:00:05.3]} 1/2-1/2